bitfinex-derivatives/quotes_BTCF0:USTF0_20250209
["timestamp","ask_amount","ask_price","bid_price","bid_amount"]
[1739112792648,0.8398898,96080.0,96079.0,0.00046905]
[1739112793954,0.85055636,96080.0,96079.0,0.00046905]
[1739112794648,0.2081642,96064.0,96061.0,0.00015608]
[1739112794850,0.0305,96079.0,96061.0,0.00015608]
[1739112795049,0.2081665,96062.0,96061.0,0.00015608]
[1739112796547,0.2101665,96062.0,96061.0,0.00015608]
[1739112797146,0.2121665,96062.0,96061.0,0.00015608]
[1739112809569,0.26277704,96062.0,96061.0,0.00015608]
[1739112816877,0.2121665,96062.0,96061.0,0.00015608]
[1739112829080,0.2121665,96062.0,96061.0,0.20832478]
[1739112841191,0.004,96062.0,96061.0,0.20832478]
[1739112850700,0.2121666,96062.0,96061.0,0.00015608]
[1739112855993,0.2121666,96062.0,96061.0,0.20832478]
[1739112856497,0.2121666,96062.0,96061.0,0.00015608]
[1739112860105,0.004,96062.0,96061.0,0.00015608]
[1739112861091,0.1867872,96072.0,96061.0,0.36095608]
[1739112861297,0.1867872,96072.0,96071.0,0.5689471]
[1739112861494,0.2202,96074.0,96073.0,0.2081427]
[1739112863001,0.2202,96074.0,96073.0,0.2131427]
[1739112863595,0.2081368,96076.0,96073.0,0.2131427]
[1739112863791,0.2081368,96076.0,96073.0,0.005]
[1739112864003,0.2081368,96076.0,96074.0,0.2081402]
[1739112865201,0.2081368,96076.0,96074.0,0.2111402]
[1739112866204,0.2081368,96076.0,96074.0,0.2151402]
[1739112867900,0.2081368,96076.0,96074.0,0.22568596]
[1739112870907,0.20828428,96080.0,96079.0,0.2081297]
[1739112871604,0.00015608,96080.0,96079.0,0.2081297]
[1739112872201,0.1867872,96087.0,96086.0,0.2081146]
[1739112874504,0.1867872,96087.0,96086.0,0.21847767]
[1739112874704,0.1877872,96087.0,96086.0,0.21847767]
[1739112874901,0.001,96087.0,96086.0,0.21847767]
[1739112875711,0.002,96087.0,96086.0,0.21847767]
[1739112880905,0.2081255,96082.0,96081.0,0.2081252]
[1739112882402,0.2081255,96082.0,96081.0,0.2091252]
[1739112883314,0.2081255,96082.0,96081.0,0.2101252]
[1739112884817,0.2081255,96082.0,96081.0,0.002]
[1739112891512,0.2081255,96082.0,96081.0,0.2101254]
[1739112900613,0.1867872,96093.0,96081.0,0.002]
[1739112900819,0.2081044,96091.0,96090.0,0.2081016]
[1739112901122,0.1867872,96093.0,96086.0,0.3608]
[1739112901123,0.1867872,96093.0,96092.0,0.2081016]
[1739112901922,0.1897872,96093.0,96092.0,0.2081016]
[1739112902521,0.1867872,96093.0,96092.0,0.2081016]
[1739112902722,0.1897872,96093.0,96092.0,0.2081016]
[1739112902918,0.1937872,96093.0,96092.0,0.2081016]
[1739112903926,0.1927872,96093.0,96092.0,0.2081016]
[1739112904729,0.1897872,96093.0,96092.0,0.2184691]
[1739112904924,0.1917872,96093.0,96092.0,0.2184691]
[1739112906523,0.005,96093.0,96092.0,0.2184691]
[1739112912730,0.2130994,96093.0,96092.0,0.2184691]
[1739112914323,0.2130994,96093.0,96092.0,0.2081016]
[1739112915830,0.2081018,96092.0,96087.0,0.2081124]
[1739112916031,0.2081018,96092.0,96091.0,0.2081037]
[1739112916934,0.2131018,96092.0,96091.0,0.2081037]
[1739112920342,0.26369348,96092.0,96091.0,0.2081037]
[1739112921229,0.26369348,96092.0,96086.0,0.01066165]
[1739112921430,0.26369348,96092.0,96091.0,0.2081037]
[1739112922629,0.26169348,96092.0,96091.0,0.2081037]
[1739112922833,0.26369348,96092.0,96091.0,0.2081037]
[1739112923238,0.26169348,96092.0,96091.0,0.2081037]
[1739112923436,0.26369348,96092.0,96091.0,0.2081037]
[1739112924543,0.26069348,96092.0,96091.0,0.2081037]
[1739112924743,0.26369348,96092.0,96091.0,0.2081037]
[1739112928548,0.05559168,96092.0,96081.0,0.36095608]
[1739112928752,0.2081232,96082.0,96081.0,0.36095608]
[1739112929146,0.2081232,96082.0,96081.0,0.5480405]
[1739112929949,0.2081232,96082.0,96081.0,0.5500405]
[1739112930647,0.2081232,96082.0,96081.0,0.7581659]
[1739112931040,0.2081163,96087.0,96086.0,0.2081111]
[1739112934942,0.033,96095.0,96083.0,0.3608]
[1739112935147,0.2081031,96092.0,96091.0,0.2080997]
[1739112935348,0.2080973,96094.0,96093.0,0.2080951]
[1739112936857,0.2110973,96094.0,96093.0,0.2080951]
[1739112937356,0.2150973,96094.0,96093.0,0.2080951]
[1739112937742,0.2081102,96090.0,96089.0,0.2081076]
[1739112937951,0.007,96094.0,96093.0,0.2080994]
[1739112939150,0.004,96094.0,96093.0,0.2080994]
[1739112939556,0.20824908,96096.0,96095.0,0.2080951]
[1739112941261,0.21224908,96096.0,96095.0,0.2080951]
[1739112941658,0.21524908,96096.0,96095.0,0.2080951]
[1739112946560,0.00715608,96096.0,96087.0,0.04356294]
[1739112946763,0.2081055,96092.0,96091.0,0.208103]
[1739112948272,0.2101055,96092.0,96091.0,0.208103]
[1739112949665,0.2131055,96092.0,96091.0,0.208103]
[1739112950457,0.2121055,96092.0,96091.0,0.208103]
[1739112951168,0.2101055,96092.0,96091.0,0.208103]
[1739112951360,0.2111055,96092.0,96091.0,0.208103]
[1739112952162,0.2121055,96092.0,96091.0,0.208103]
[1739112952965,0.004,96092.0,96081.0,0.00015608]
[1739112953170,0.2081167,96086.0,96085.0,0.2081155]
[1739112961267,0.2202,96100.0,96083.0,0.3608]
[1739112961573,0.2081054,96092.0,96091.0,0.2080982]
[1739112961877,0.2081054,96092.0,96091.0,0.5688982]
[1739112962665,0.002,96092.0,96091.0,0.5689037]
[1739112963579,0.005,96092.0,96091.0,0.5689037]
[1739112964265,0.005,96092.0,96091.0,0.57917375]
[1739112966080,0.002,96092.0,96091.0,0.57917375]
[1739112966273,0.00015608,96101.0,96100.0,0.2080842]
[1739112966572,0.00015608,96101.0,96100.0,0.5688842]
[1739112967974,0.00015608,96101.0,96100.0,0.5728842]
[1739112969086,0.00015608,96101.0,96100.0,0.5778842]
[1739112969983,0.00015608,96101.0,96100.0,0.6488842]
[1739112970481,0.21587932,96112.0,96111.0,0.2080604]
[1739112970682,0.21587932,96112.0,96111.0,0.5688604]
[1739112971282,0.2080394,96121.0,96120.0,0.208041]
[1739112971481,0.2080394,96121.0,96120.0,0.568841]
[1739112971989,0.18706673,96122.0,96120.0,0.568841]
[1739112972686,0.003,96121.0,96120.0,0.568841]
[1739112973988,0.007,96121.0,96120.0,0.568841]
[1739112974992,0.004,96121.0,96120.0,0.568841]
[1739112975692,0.007,96121.0,96120.0,0.568841]
[1739112975892,0.00015608,96130.0,96129.0,0.2080214]
[1739112976095,0.00015608,96130.0,96129.0,0.5688214]
[1739112976394,0.00015608,96130.0,96129.0,0.6650214]
[1739112976990,0.00815608,96130.0,96129.0,0.6660214]
[1739112977596,0.00915608,96130.0,96129.0,0.6660214]
[1739112978599,0.00815608,96130.0,96129.0,0.6660214]
[1739112978800,0.00515608,96130.0,96129.0,0.6650214]
[1739112981993,0.01032058,96141.0,96140.0,0.2079976]
[1739112982297,0.2079788,96149.0,96145.0,0.2079857]
[1739112982503,0.2079788,96149.0,96140.0,0.3608]
[1739112982504,0.2079674,96154.0,96151.0,0.2079722]
[1739112982704,0.0103539,96156.0,96148.0,0.3608]
[1739112982905,0.2079612,96157.0,96153.0,0.2079675]
[1739112983101,0.000156,96162.0,96153.0,0.2079675]
[1739112983304,0.2079673,96154.0,96153.0,0.2079675]
[1739112985097,0.003,96156.0,96155.0,0.2079652]
[1739112985904,0.210963,96156.0,96155.0,0.2079652]
[1739112986201,0.207963,96156.0,96155.0,0.2079652]
[1739112987099,0.0326,96158.0,96157.0,0.2079608]
[1739112987399,0.2081077,96162.0,96153.0,0.3608]
[1739112987705,0.000156,96162.0,96161.0,0.5687522]
[1739112992594,0.000156,96162.0,96161.0,0.5717522]
[1739112992994,0.00019741,96162.0,96161.0,0.5717522]
[1739112993911,0.00019741,96162.0,96161.0,0.5737522]
[1739112994411,0.20814741,96162.0,96161.0,0.5737522]
[1739112997012,0.20814741,96162.0,96161.0,0.4177326]
[1739112999309,0.20814741,96162.0,96161.0,0.2129522]
[1739113001217,0.20814741,96162.0,96161.0,0.005]
[1739113010119,0.00019741,96162.0,96161.0,0.005]
[1739113011012,0.23684794,96162.0,96161.0,0.005]
[1739113012120,0.23684794,96162.0,96161.0,0.01536106]
[1739113015022,0.05075529,96162.0,96161.0,0.22331316]
[1739113016823,0.05075529,96162.0,96161.0,0.2129521]
[1739113016824,0.25870529,96162.0,96161.0,0.2129521]
[1739113018131,0.25870529,96162.0,96161.0,0.005]
[1739113018522,0.20814741,96162.0,96161.0,0.005]
[1739113020130,0.00019741,96162.0,96161.0,0.005]
[1739113020320,0.00019741,96162.0,96161.0,0.2129521]
[1739113027827,0.00019741,96162.0,96161.0,0.2838321]
[1739113031437,0.00019741,96162.0,96161.0,0.2129521]
[1739113031822,0.00019741,96162.0,96161.0,0.2838321]
[1739113035241,0.18609265,96180.0,96179.0,0.2079133]
[1739113035942,0.2079067,96183.0,96181.0,0.2079079]
[1739113037331,0.2079067,96183.0,96181.0,0.2182656]
[1739113038028,0.2079067,96183.0,96181.0,0.2222656]
[1739113038241,0.2079067,96183.0,96181.0,0.2272656]
[1739113040541,0.2079067,96183.0,96181.0,0.2252656]
[1739113041540,0.2079067,96183.0,96181.0,0.2232656]
[1739113041737,0.2079067,96183.0,96181.0,0.2242656]
[1739113041937,0.2079067,96183.0,96181.0,0.2192656]
[1739113042134,0.2079067,96183.0,96181.0,0.2262656]
[1739113042333,0.2079067,96183.0,96181.0,0.0183577]
[1739113042633,0.2079067,96183.0,96182.0,0.2079068]
[1739113043238,0.18693248,96187.0,96186.0,0.2078981]
[1739113043436,0.18693248,96187.0,96186.0,0.5686981]
[1739113044240,0.20796609,96192.0,96191.0,0.2078873]
[1739113045842,0.20796609,96192.0,96191.0,0.2088873]
[1739113046543,0.20796609,96192.0,96191.0,0.21921363]
[1739113047547,0.20796609,96192.0,96191.0,0.22021363]
[1739113047749,0.20796609,96192.0,96191.0,0.2098873]
[1739113048140,0.20796609,96192.0,96191.0,0.2078873]
[1739113048347,0.20796609,96192.0,96191.0,0.2118873]
[1739113048846,0.20796609,96192.0,96191.0,0.2108873]
[1739113049145,0.20796609,96192.0,96191.0,0.2088873]
[1739113051039,0.20796609,96192.0,96191.0,0.2078873]
[1739113052442,0.20796609,96192.0,96191.0,0.2088873]
[1739113052642,0.20796609,96192.0,96191.0,0.2098873]
[1739113054451,0.20796609,96192.0,96191.0,0.2088873]
[1739113054749,0.20796609,96192.0,96191.0,0.2078873]
[1739113062656,0.20796609,96192.0,96191.0,0.5686873]
[1739113072656,0.20796609,96192.0,96191.0,0.2078873]
[1739113074862,0.20796609,96192.0,96188.0,0.01065704]
[1739113074863,0.2078916,96189.0,96188.0,0.01065704]
[1739113075169,0.2078916,96189.0,96188.0,0.2078938]
[1739113076065,0.2079046,96184.0,96183.0,0.2079043]
[1739113076259,0.2079068,96182.0,96181.0,0.3608]
[1739113076461,0.2079068,96182.0,96181.0,0.5687089]
[1739113077261,0.2079068,96182.0,96181.0,0.3608]
[1739113077459,0.2079068,96182.0,96172.0,0.000156]
[1739113077460,0.2079111,96180.0,96172.0,0.000156]
[1739113077859,0.2079262,96173.0,96172.0,0.24830271]
[1739113078176,0.7889262,96173.0,96172.0,0.24830271]
[1739113078464,0.581,96173.0,96164.0,0.00155975]
[1739113078668,0.5687435,96165.0,96164.0,0.00155975]
[1739113079673,0.5687435,96165.0,96164.0,0.00255975]
[1739113081172,0.5687435,96165.0,96164.0,0.00355975]
[1739113081371,0.5687435,96165.0,96164.0,0.00255975]
[1739113081671,0.5687435,96165.0,96164.0,0.00355975]
[1739113081873,0.61930175,96165.0,96164.0,0.00355975]
[1739113084369,0.25850175,96165.0,96164.0,0.00355975]
[1739113084769,0.2079435,96165.0,96164.0,0.00355975]
[1739113096583,0.23046456,96173.0,96164.0,0.00355975]
[1739113096777,0.2202,96173.0,96172.0,0.2079284]
[1739113099887,0.2202,96173.0,96172.0,0.21823302]
[1739113100182,0.2212,96173.0,96172.0,0.21823302]
[1739113101585,0.001,96173.0,96172.0,0.57903302]
[1739113103475,0.2079115,96180.0,96178.0,0.2079154]
[1739113103676,0.2079115,96180.0,96179.0,0.0331]
[1739113105578,0.2089115,96180.0,96179.0,0.0331]
[1739113106687,0.2079115,96180.0,96179.0,0.0341]
[1739113106883,0.2079115,96180.0,96179.0,0.0351]
[1739113107284,0.2079115,96180.0,96179.0,0.0341]
[1739113107787,0.2079115,96180.0,96179.0,0.0331]
[1739113108382,0.2079115,96180.0,96179.0,0.2410133]
[1739113110988,0.2202,96184.0,96176.0,0.3608]
[1739113111183,0.2079176,96177.0,96176.0,0.3608]
[1739113112092,0.0628,96183.0,96166.0,0.0315]
[1739113112387,0.0628,96183.0,96170.0,0.25697594]
[1739113112388,0.207931,96171.0,96170.0,0.25697594]
[1739113112598,0.207931,96171.0,96170.0,0.207932]
[1739113114194,0.207931,96171.0,96170.0,0.209932]
[1739113114489,0.207931,96171.0,96170.0,0.211932]
[1739113127896,0.207931,96171.0,96170.0,0.004]
[1739113138811,0.25848515,96171.0,96170.0,0.004]
[1739113139309,0.2079435,96165.0,96158.0,0.3608]
[1739113140404,0.2079435,96165.0,96164.0,0.00655975]
[1739113141315,0.2079435,96165.0,96164.0,0.01055975]
[1739113143114,0.25849765,96165.0,96164.0,0.01055975]
[1739113145503,0.25849765,96165.0,96164.0,0.21850545]
[1739113145701,0.2079435,96165.0,96164.0,0.21850545]
[1739113146514,0.18702958,96173.0,96172.0,0.2079284]
[1739113146706,0.18702958,96173.0,96172.0,0.5687284]
[1739113147213,0.18702958,96173.0,96172.0,0.2079284]
[1739113147615,0.39495578,96173.0,96172.0,0.2079284]
[1739113147815,0.39495578,96173.0,96172.0,0.2099284]
[1739113148617,0.2079262,96173.0,96172.0,0.2099284]
[1739113148916,0.2079262,96173.0,96172.0,0.22026449]
[1739113162528,0.2079103,96183.0,96182.0,0.2079003]
[1739113163817,0.2099103,96183.0,96182.0,0.2079003]
[1739113164019,0.2119103,96183.0,96182.0,0.2079003]
[1739113179826,0.004,96183.0,96173.0,0.04919994]
[1739113180025,0.2079241,96175.0,96174.0,0.2079241]
[1739113183221,0.2099241,96175.0,96174.0,0.2079241]
[1739113192842,0.260474,96175.0,96174.0,0.2079241]
[1739113195731,0.2099241,96175.0,96174.0,0.2079241]
[1739113200052,0.2079241,96174.0,96173.0,0.000156]
[1739113200947,0.4281241,96174.0,96173.0,0.000156]
[1739113201144,0.2079414,96166.0,96165.0,0.18648956]
[1739113203860,0.2079587,96158.0,96157.0,0.3608]
[1739113205762,0.2079587,96158.0,96157.0,0.3638]
[1739113206162,0.2079587,96158.0,96157.0,0.3668]
[1739113207661,0.000156,96167.0,96157.0,0.3668]
[1739113207966,0.000156,96167.0,96166.0,0.5687414]
[1739113209658,0.001156,96167.0,96166.0,0.5687414]
[1739113211574,0.001156,96167.0,96166.0,0.57941859]
[1739113218886,0.4281071,96182.0,96181.0,0.207909]
[1739113219075,0.2079071,96182.0,96181.0,0.207909]
[1739113220079,0.2099071,96182.0,96181.0,0.208909]
[1739113220582,0.2119071,96182.0,96181.0,0.208909]
[1739113223587,0.004,96182.0,96181.0,0.208909]
[1739113224290,0.004,96182.0,96181.0,0.21937188]
[1739113226177,0.2119068,96182.0,96181.0,0.21937188]
[1739113227182,0.004,96182.0,96181.0,0.21937188]
[1739113228285,0.2080434,96191.0,96190.0,0.2078895]
[1739113229589,0.2080434,96191.0,96190.0,0.2248895]
[1739113231894,0.2080434,96191.0,96190.0,0.5856895]
[1739113236787,0.000156,96191.0,96190.0,0.5856895]
[1739113246788,0.2080434,96191.0,96190.0,0.3778]
[1739113247103,0.2080434,96191.0,96190.0,0.017]
[1739113249395,0.2400434,96191.0,96190.0,0.017]
[1739113249597,0.2400434,96191.0,96190.0,0.2248896]
[1739113249904,0.2400434,96191.0,96190.0,0.017]
[1739113254398,0.2080434,96191.0,96190.0,0.2248896]
[1739113256603,0.000156,96191.0,96190.0,0.2248896]
[1739113257998,0.000156,96191.0,96190.0,0.5856896]
[1739113265200,0.2080434,96191.0,96190.0,0.5856896]
[1739113265999,0.000156,96191.0,96190.0,0.5856896]
[1739113272905,0.1,96200.0,96199.0,0.2078701]
[1739113273107,0.1,96200.0,96199.0,0.5686701]
[1739113274706,0.1,96200.0,96199.0,0.5736701]
[1739113275315,0.1,96200.0,96199.0,0.5796701]
[1739113278604,8.089e-05,96209.0,96206.0,0.2078548]
[1739113278805,8.089e-05,96209.0,96208.0,0.3608]
[1739113279413,0.20792939,96209.0,96208.0,0.3608]
[1739113280217,0.20792939,96209.0,96206.0,0.3628]
[1739113282218,0.20792939,96209.0,96206.0,0.3638]
[1739113282615,0.20792939,96209.0,96208.0,0.002]
[1739113283319,0.20792939,96209.0,96206.0,0.3618]
[1739113283523,0.20792939,96209.0,96206.0,0.3638]
[1739113283821,0.20792939,96209.0,96207.0,0.2078523]
[1739113284218,0.20792939,96209.0,96208.0,0.002]
[1739113285019,0.20792939,96209.0,96208.0,0.003]
[1739113286019,0.20792939,96209.0,96208.0,0.001]
[1739113286932,0.20792939,96209.0,96208.0,0.003]
[1739113290133,0.25846099,96209.0,96208.0,0.003]
[1739113294326,0.20792939,96209.0,96208.0,0.003]
[1739113294525,0.42812939,96209.0,96208.0,0.003]
[1739113294730,0.52462939,96209.0,96208.0,0.003]
[1739113297935,0.66509238,96209.0,96208.0,0.003]
[1739113299137,0.66509238,96209.0,96208.0,0.00036545]
[1739113300333,0.57516477,96209.0,96208.0,0.00036545]
[1739113303541,0.47866477,96209.0,96208.0,0.00036545]
[1739113311450,0.6655743,96209.0,96208.0,0.00036545]
[1739113315450,0.42812939,96209.0,96208.0,0.00036545]
[1739113318347,0.20792939,96209.0,96208.0,0.00036545]
[1739113320051,0.20792939,96209.0,96208.0,0.20821615]
[1739113321951,8.089e-05,96209.0,96208.0,0.20821615]
[1739113322359,0.20792939,96209.0,96208.0,0.20821615]
[1739113322749,0.44537113,96209.0,96208.0,0.20821615]
[1739113324554,0.23752263,96209.0,96208.0,0.20821615]
[1739113326962,8.089e-05,96209.0,96208.0,0.20821615]
[1739113332363,0.20792939,96209.0,96208.0,0.20821615]
[1739113332663,0.20792939,96209.0,96208.0,0.00036545]
[1739113339560,0.25846394,96209.0,96208.0,0.00036545]
[1739113344162,0.25846394,96209.0,96208.0,3.874e-05]
[1739113346167,0.05061544,96209.0,96201.0,0.01383347]
[1739113346372,0.2078636,96202.0,96201.0,0.01383347]
[1739113346964,0.2078636,96202.0,96201.0,0.02406286]
[1739113347376,0.2078636,96202.0,96201.0,0.02806286]
[1739113347783,0.2078636,96202.0,96201.0,0.02906286]
[1739113348775,0.2078636,96202.0,96201.0,0.03306286]
[1739113348978,0.2078636,96202.0,96201.0,0.24092866]
[1739113349278,0.207854,96207.0,96206.0,0.2078516]
[1739113350570,0.207854,96207.0,96206.0,0.2098516]
[1739113351679,0.207854,96207.0,96206.0,0.2118516]
[1739113359883,0.207854,96207.0,96206.0,0.5726516]
[1739113375283,8.089e-05,96209.0,96208.0,0.2078507]
[1739113376794,8.089e-05,96209.0,96208.0,0.2088507]
[1739113377396,8.089e-05,96209.0,96208.0,0.2098507]
[1739113377891,0.18679079,96213.0,96212.0,0.207842]
[1739113378191,0.42369352,96225.0,96212.0,0.207842]
[1739113378192,0.18679079,96223.0,96222.0,0.2078204]
[1739113378397,0.18679079,96223.0,96222.0,0.5686204]
[1739113380994,0.18679079,96223.0,96222.0,0.5696204]
[1739113381999,0.2078165,96224.0,96222.0,0.5696204]
[1739113383595,0.2078165,96224.0,96222.0,0.5706204]
[1739113384397,0.2078183,96223.0,96222.0,0.5706204]
[1739113386306,0.2078183,96223.0,96222.0,0.3628]
[1739113387101,0.2078183,96223.0,96222.0,0.3618]
[1739113387297,0.2078183,96223.0,96222.0,0.3628]
[1739113387606,0.2078183,96223.0,96222.0,0.002]
[1739113390814,0.25834646,96223.0,96222.0,0.002]
[1739113398819,0.25834646,96223.0,96222.0,0.2098204]
[1739113401311,0.2078183,96223.0,96222.0,0.2098204]
[1739113406821,0.2078183,96223.0,96222.0,0.002]
[1739113408425,0.2078183,96223.0,96222.0,0.2098204]
[1739113409524,0.25834189,96223.0,96222.0,0.2098204]
[1739113410429,0.05052359,96223.0,96222.0,0.2098204]
[1739113410627,0.25834189,96223.0,96222.0,0.2098204]
[1739113417116,0.2078183,96223.0,96222.0,0.2098204]
[1739113424832,0.2078183,96223.0,96222.0,0.002]
[1739113425224,0.2284383,96223.0,96222.0,0.002]
[1739113427139,0.27896171,96223.0,96222.0,0.002]
[1739113429937,0.2284383,96223.0,96222.0,0.002]
[1739113430435,0.2284383,96223.0,96222.0,0.2098204]
[1739113437437,0.27896092,96223.0,96222.0,0.2098204]
[1739113439841,0.2284383,96223.0,96222.0,0.2098204]
[1739113442643,0.02062,96223.0,96222.0,0.2098204]
[1739113442840,0.18679079,96230.0,96229.0,0.2078053]
[1739113443039,0.18679079,96230.0,96229.0,0.5686053]
[1739113443433,0.39459399,96230.0,96229.0,0.5686053]
[1739113446036,0.39459399,96230.0,96229.0,0.3608]
[1739113446232,0.39459399,96230.0,96229.0,0.5686053]
[1739113446452,0.18679079,96230.0,96220.0,0.05924114]
[1739113446749,0.2078226,96221.0,96220.0,0.31610788]
[1739113446937,0.2078226,96221.0,96220.0,0.21802]
[1739113447245,0.2078226,96221.0,96220.0,0.40450956]
[1739113448743,0.2078226,96221.0,96220.0,0.40650956]
[1739113449649,0.2078226,96221.0,96220.0,0.40950956]
[1739113449844,0.2078226,96221.0,96220.0,0.22302]
[1739113454644,0.2078226,96221.0,96220.0,0.58382]
[1739113466249,0.18679079,96229.0,96220.0,0.3759972]
[1739113466454,0.2078134,96226.0,96225.0,0.2078092]
[1739113469159,0.2078016,96231.0,96230.0,0.207801]
[1739113469361,0.18679079,96232.0,96231.0,0.207801]
[1739113471164,0.18679079,96232.0,96231.0,0.210801]
[1739113471866,0.18679079,96232.0,96231.0,0.212801]
[1739113472567,0.2202,96234.0,96233.0,0.2077967]
[1739113472861,0.2077925,96235.0,96233.0,0.2077967]
[1739113473767,0.2077925,96235.0,96233.0,0.2097967]
[1739113474368,0.2077925,96235.0,96234.0,0.2077945]
[1739113474960,0.2077945,96234.0,96233.0,0.003]
[1739113475367,0.2077945,96234.0,96233.0,0.002]
[1739113476066,0.0315,96239.0,96234.0,0.002]
[1739113476260,0.2077924,96235.0,96234.0,0.002]
[1739113477068,0.2077945,96234.0,96233.0,0.2117964]
[1739113477769,0.2077945,96234.0,96233.0,0.2077964]
[1739113478369,0.2077945,96234.0,96233.0,0.2097964]
[1739113479776,0.2077945,96234.0,96233.0,0.2117964]
[1739113480678,0.19709971,96241.0,96233.0,0.004]
[1739113480874,0.19709971,96241.0,96240.0,0.2077816]
[1739113481175,0.19709971,96241.0,96239.0,0.3608]
[1739113481176,0.2077816,96240.0,96239.0,0.3608]
[1739113481773,0.2401816,96240.0,96239.0,0.3608]
[1739113484774,0.0324,96240.0,96239.0,0.3608]
[1739113485078,0.2077731,96244.0,96239.0,0.3608]
[1739113486286,0.2077731,96244.0,96243.0,0.2077751]
[1739113487480,0.2202,96248.0,96247.0,0.2077665]
[1739113487683,0.4383361,96248.0,96247.0,0.2077665]
[1739113490582,0.2181361,96248.0,96247.0,0.2077665]
[1739113492684,0.2181361,96248.0,96247.0,0.21797922]
[1739113493981,0.2181361,96248.0,96247.0,0.57877922]
[1739113497990,0.2181361,96248.0,96247.0,0.37101272]
[1739113500585,0.2181361,96248.0,96247.0,0.3608]
[1739113501284,0.2181361,96248.0,96239.0,0.3608]
[1739113501285,0.0103718,96248.0,96239.0,0.3608]
[1739113501486,0.04904394,96250.0,96229.0,0.2078038]
[1739113501684,0.2077924,96235.0,96230.0,0.04904394]
[1739113501884,0.2077924,96235.0,96229.0,0.2078038]
[1739113503791,0.2077924,96235.0,96234.0,0.00215591]
[1739113504396,0.2077924,96235.0,96234.0,0.00315591]
[1739113508102,0.2077801,96241.0,96235.0,0.2077924]
[1739113508290,0.2077801,96241.0,96238.0,0.3608]
[1739113508597,0.2077823,96240.0,96238.0,0.3608]
[1739113511500,0.2077823,96240.0,96238.0,0.37119142]
[1739113511901,0.2077823,96240.0,96238.0,0.57897562]
[1739113514706,0.07016,96254.0,96238.0,0.57897562]
[1739113514707,0.21587932,96284.0,96239.0,0.43466]
[1739113514899,0.21587932,96284.0,96283.0,0.5684888]
[1739113515201,0.21587932,96284.0,96283.0,0.6386488]
[1739113516295,0.16597932,96284.0,96283.0,0.6386488]
[1739113516603,0.1,96300.0,96286.0,0.2076823]
[1739113517307,0.01283901,96287.0,96286.0,0.2076823]
[1739113517603,0.01283901,96287.0,96283.0,0.43496]
[1739113517604,0.58899185,96295.0,96294.0,0.207665]
[1739113517904,0.58899185,96295.0,96294.0,0.568465]
[1739113518290,0.1,96300.0,96299.0,0.2076543]
[1739113520091,0.2076046,96323.0,96304.0,0.2076419]
[1739113520298,0.24653942,96328.0,96324.0,0.2075998]
[1739113520498,0.24653942,96328.0,96325.0,0.3608]
[1739113522112,0.24653942,96328.0,96325.0,0.3618]
[1739113522298,0.24653942,96328.0,96325.0,0.36175057]
[1739113522905,0.24653942,96328.0,96325.0,0.36075057]
[1739113523106,0.24653942,96328.0,96325.0,0.36175057]
[1739113524606,0.01017021,96335.0,96325.0,0.36175057]
[1739113524810,0.2075746,96336.0,96325.0,0.36175057]
[1739113524811,0.2075746,96336.0,96325.0,0.4362746]
[1739113525209,0.07452403,96340.0,96325.0,0.4362746]
[1739113525410,0.2075869,96331.0,96325.0,0.4362746]
[1739113525601,0.2075869,96331.0,96325.0,0.4352746]
[1739113525800,0.5683945,96327.0,96325.0,0.001]
[1739113526004,0.2075945,96327.0,96325.0,0.001]
[1739113526624,0.2075945,96327.0,96325.0,0.002]
[1739113527223,0.2075945,96327.0,96325.0,0.001]
[1739113530213,0.2076004,96324.0,96323.0,0.00015575]
[1739113530524,0.2076478,96302.0,96296.0,0.11403702]
[1739113531028,0.2076478,96302.0,96299.0,0.207654]
[1739113531819,0.2076478,96302.0,96301.0,0.00355755]
[1739113532229,0.2076478,96302.0,96301.0,0.00655755]
[1739113534124,0.2077854,96311.0,96306.0,0.2076371]
[1739113534430,0.2077854,96311.0,96310.0,0.3608]
[1739113535330,0.2087854,96311.0,96310.0,0.3608]
[1739113537030,0.0011549,96311.0,96310.0,0.3608]
[1739113537333,0.0011549,96311.0,96310.0,1.8608]
[1739113541330,0.0011549,96311.0,96310.0,0.3608]
[1739113541930,0.0011549,96311.0,96310.0,1.8608]
[1739113542129,0.0001549,96311.0,96310.0,1.8618]
[1739113542532,0.0001549,96311.0,96310.0,1.8628]
[1739113543526,0.0001549,96311.0,96310.0,0.3628]
[1739113544122,0.0001549,96311.0,96310.0,0.37725676]
[1739113545131,0.0001549,96311.0,96310.0,0.37625676]
[1739113545326,0.0001549,96311.0,96310.0,0.38125676]
[1739113545733,0.0001549,96311.0,96310.0,0.38425676]
[1739113546029,0.0001549,96311.0,96310.0,0.3698]
[1739113548734,0.0001549,96311.0,96310.0,0.5774305]
[1739113553941,0.0001549,96311.0,96310.0,0.6077305]
[1739113555244,0.2076108,96320.0,96319.0,0.2076111]
[1739113555934,0.2076108,96320.0,96319.0,0.5684111]
[1739113556544,0.2076108,96320.0,96319.0,0.5694111]
[1739113556744,0.2076108,96320.0,96319.0,0.5704111]
[1739113560049,0.2076108,96320.0,96319.0,0.3628]
[1739113561454,0.2076108,96320.0,96319.0,0.3712606]
[1739113564055,0.2076108,96320.0,96319.0,0.002]
[1739113565141,0.2076108,96320.0,96319.0,0.001]
[1739113565350,0.3,96320.0,96305.0,0.3113011]
[1739113565649,0.3608,96306.0,96305.0,0.2115011]
[1739113565851,0.2076478,96302.0,96282.0,0.43714154]
[1739113566057,0.2076564,96298.0,96282.0,0.43714154]
[1739113566545,0.5684564,96298.0,96282.0,0.43714154]
[1739113566746,0.8684564,96298.0,96297.0,0.14110852]
[1739113567146,0.8684564,96298.0,96297.0,0.03357752]
[1739113567368,0.8684564,96298.0,96297.0,0.04257752]
[1739113567554,0.8684564,96298.0,96297.0,0.04957752]
[1739113568161,0.8684564,96298.0,96297.0,0.01]
[1739113568666,0.2076672,96293.0,96266.0,0.0313]
[1739113568952,0.5684672,96293.0,96292.0,5e-08]
[1739113569156,0.881,96293.0,96263.0,0.00155817]
[1739113569358,0.2077297,96264.0,96263.0,0.00155817]
[1739113569558,0.2800097,96264.0,96263.0,0.00155817]
[1739113570662,0.2830097,96264.0,96263.0,0.00155817]
[1739113571063,0.2117297,96264.0,96263.0,0.00155817]
[1739113573261,0.22035575,96273.0,96263.0,0.00155817]
[1739113573454,0.00015575,96273.0,96271.0,0.2077145]
[1739113573763,0.00052001,96280.0,96278.0,0.2076992]
[1739113574058,0.185324,96285.0,96283.0,0.2076879]
[1739113574358,0.18480399,96285.0,96283.0,0.2076879]
[1739113575453,0.2076576,96298.0,96289.0,0.2076757]
[1739113576364,0.3608,96303.0,96287.0,0.3608]
[1739113576564,0.3608,96303.0,96288.0,0.0304]